Workbook

Sheet Foglio1
A4: CLASSIFICA ASSOLUTA INDIVIDUALE FEMMINILE MASCHILE XXXIII CIRCUITO MASTER OLD STARS 2019 | B4: CLASSIFICA ASSOLUTA INDIVIDUALE FEMMINILE MASCHILE XXXVI CIRCUITO VOLKL MASTER OLD STARS 2023
B9: FEMMINILE DAME C6 | C9: Anno | D9: Società Old Stars | E9: Società Fisi | F9: Temù | G9: Borno | H9: Borno | I9: Gerola | J9: Gerola | K9: Aprica | L9: Aprica | M9: Comb.Aprica | N9: Lizzola | O9: Lizzola | P9: Aprica | Q9: Aprica | R9: Temu | S9: Chiesa | T9: Chiesa | U9: Chiesa | V9: Comb.Chiesa | W9: Tonale | X9: Tonale | Y9: Comb.Tonale | Z9: Bonus | AA9: Totale | AB9: Classifica
B10: dal 1947 e precedenti
B11: MONTINI SILVA | C11: 1947 | D11: SC Cernobbio | E11: SC Cernobbio | F11: 100 | G11: 100 | H11: 100 | I11: 100 | J11: 100 | K11: 100 | L11: 100 | M11: 100 | N11: 100 | O11: 100 | P11: 80 | Q11: 80 | R11: 100 | S11: 80 | Z11: 30 | AA11: =SUM(F11:Z11) -> 1370 | AB11: 1
B12: MAGLIA MARIKA | C12: 1947 | D12: SC Cernobbio | E12: SC Cernobbio | I12: 80 | J12: 80 | K12: 60 | L12: 60 | M12: 60 | N12: 60 | O12: 60 | S12: 60 | T12: 80 | U12: 80 | V12: 80 | W12: 100 | X12: 100 | Y12: 100 | Z12: 30 | AA12: =SUM(F12:Z12) -> 1090 | AB12: 2
B13: CROTTI CATERINA | C13: 1947 | D13: SC Cernobbio | E13: SC Retike Ski | P13: 100 | Q13: 100 | S13: 100 | T13: 100 | U13: 100 | V13: 100 | Z13: 10 | AA13: =SUM(F13:Z13) -> 610 | AB13: 3
B14: PEZZOTTA LUCIANA | C14: 1942 | D14: SC La Recastello | G14: 1 | H14: 80 | K14: 80 | L14: 80 | M14: 80 | N14: 80 | O14: 80 | Z14: 10 | AA14: =SUM(F14:Z14) -> 491 | AB14: 4
B16: FEMMINILE DAME C5 | C16: Anno | D16: Società Old Stars | E16: Società Fisi | F16: Temù | G16: Borno | H16: Borno | I16: Gerola | J16: Gerola | K16: Aprica | L16: Aprica | M16: Comb.Aprica | N16: Lizzola | O16: Lizzola | P16: Aprica | Q16: Aprica | R16: Temu | S16: Chiesa | T16: Chiesa | U16: Chiesa | V16: Comb.Chiesa | W16: Tonale | X16: Tonale | Y16: Comb.Tonale | Z16: Bonus | AA16: Totale | AB16: Classifica
B17: dal 1948 al 1952
B18: CARRARA GRAZIELLA | C18: 1950 | D18: SC La Recastello | F18: 100 | G18: 100 | H18: 100 | I18: 100 | J18: 100 | K18: 100 | L18: 100 | M18: 100 | P18: 100 | Q18: 100 | R18: 100 | S18: 100 | T18: 100 | U18: 100 | V18: 100 | W18: 100 | X18: 100 | Y18: 100 | Z18: 60 | AA18: =SUM(F18:Z18) -> 1860 | AB18: 1
B19: BONZANI MILENA | C19: 1949 | D19: SC Cernobbio | F19: 80 | G19: 80 | H19: 80 | I19: 80 | J19: 80 | K19: 80 | L19: 60 | M19: 80 | P19: 80 | Q19: 80 | R19: 80 | S19: 80 | T19: 80 | U19: 80 | V19: 80 | W19: 60 | X19: 80 | Y19: 80 | Z19: 60 | AA19: =SUM(F19:Z19) -> 1460 | AB19: 2
B20: CONSONNI MARILU' | C20: 1948 | D20: SC Cernobbio | E20: SC Cernobbio | F20: 60 | G20: 50 | H20: 50 | I20: 50 | J20: 50 | K20: 50 | L20: 50 | M20: 50 | N20: 100 | O20: 100 | P20: 60 | Q20: 60 | R20: 60 | S20: 60 | T20: 60 | U20: 60 | V20: 60 | W20: 80 | X20: 60 | Y20: 60 | Z20: 60 | AA20: 1190 | AB20: 3
B21: GAMBA JONNE | C21: 1950 | D21: SC La Recastello | G21: 60 | H21: 60 | I21: 45 | J21: 45 | K21: 45 | L21: 45 | M21: 45 | N21: 80 | O21: 80 | S21: 50 | T21: 50 | U21: 50 | V21: 50 | W21: 50 | X21: 50 | Y21: 50 | Z21: 30 | AA21: =SUM(F21:Z21) -> 885 | AB21: 4
B22: CASTELLINI IVANA | C22: 1951 | D22: SC Cernobbio | E22: SC Cernobbio | I22: 60 | J22: 60 | K22: 60 | L22: 80 | M22: 60 | AA22: =SUM(F22:Z22) -> 320 | AB22: 5
B24: FEMMINILE DAME C4 | C24: Anno | D24: Società Old Stars | E24: Società Fisi | F24: Temù | G24: Borno | H24: Borno | I24: Gerola | J24: Gerola | K24: Aprica | L24: Aprica | M24: Comb.Aprica | N24: Lizzola | O24: Lizzola | P24: Aprica | Q24: Aprica | R24: Temu | S24: Chiesa | T24: Chiesa | U24: Chiesa | V24: Comb.Chiesa | W24: Tonale | X24: Tonale | Y24: Comb.Tonale | Z24: Bonus | AA24: Totale | AB24: Classifica
B25: dal 1951 al 1957
B26: MATTARELLI BRUNELLA | C26: 1957 | D26: SC Ski Mountain | E26: SC Ski Mountain | F26: 100 | G26: 100 | H26: 100 | I26: 80 | J26: 80 | K26: 60 | L26: 80 | M26: 80 | N26: 100 | O26: 100 | P26: 80 | Q26: 100 | R26: 100 | S26: 100 | T26: 100 | U26: 100 | V26: 100 | W26: 80 | X26: 80 | Y26: 80 | Z26: 60 | AA26: 1720 | AB26: 1
B27: BELOTTI P.ANGELA | C27: 1956 | D27: SC La Recastello | F27: 80 | G27: 80 | H27: 80 | I27: 60 | J27: 60 | K27: 50 | L27: 50 | M27: 50 | N27: 80 | O27: 80 | P27: 60 | Q27: 60 | S27: 80 | T27: 80 | U27: 60 | V27: 60 | W27: 50 | X27: 50 | Y27: 50 | Z27: 60 | AA27: =SUM(F27:Z27)-K27 -> 1230 | AB27: 2
B28: ZUGNONI MARISA | C28: 1956 | D28: SC Cernobbio | I28: 100 | J28: 100 | K28: 100 | L28: 100 | M28: 100 | T28: 60 | U28: 80 | V28: 80 | W28: 100 | X28: 100 | Y28: 100 | Z28: 30 | AA28: =SUM(F28:Z28) -> 1050 | AB28: 3
B29: ZUGNONI DANIELA | C29: 1955 | D29: SC Cernobbio | I29: 50 | J29: 50 | K29: 80 | L29: 60 | M29: 60 | P29: 100 | Q29: 80 | T29: 50 | U29: 50 | V29: 50 | W29: 60 | X29: 60 | Y29: 60 | Z29: 30 | AA29: =SUM(F29:Z29) -> 840 | AB29: 4
B30: CAPPELLA ANNA | C30: 1955 | D30: SC La Recastello | G30: 60 | H30: 60 | K30: 45 | L30: 45 | M30: 45 | N30: 60 | O30: 60 | P30: 50 | Q30: 50 | S30: 60 | T30: 45 | U30: 45 | V30: 45 | W30: 45 | X30: 45 | Y30: 45 | Z30: 30 | AA30: =SUM(F30:Z30) -> 835 | AB30: 5
B32: FEMMINILE DAME C3 | C32: Anno | D32: Società Old Stars | E32: Società Fisi | F32: Temù | G32: Borno | H32: Borno | I32: Gerola | J32: Gerola | K32: Aprica | L32: Aprica | M32: Comb.Aprica | N32: Lizzola | O32: Lizzola | P32: Aprica | Q32: Aprica | R32: Temu | S32: Chiesa | T32: Chiesa | U32: Chiesa | V32: Comb.Chiesa | W32: Tonale | X32: Tonale | Y32: Comb.Tonale | Z32: Bonus | AA32: Totale | AB32: Classifica
B33: dal 1958 al 1962
B34: SANTAMBROGIO CRISTINA | C34: 1958 | D34: SC Ski Mountain | E34: SC Ski Mountain | F34: 100 | G34: 100 | H34: 1 | I34: 100 | J34: 100 | K34: 100 | L34: 100 | M34: 100 | N34: 100 | O34: 100 | P34: 100 | Q34: 100 | R34: 80 | S34: 100 | T34: 100 | U34: 100 | V34: 100 | W34: 100 | X34: 100 | Y34: 100 | Z34: 60 | AA34: =SUM(F34:Z34)-H34-R34 -> 1860 | AB34: 1
B35: BIROLINI MARINA | C35: 1961 | D35: SC Ski Mountain | E35: SC Ski Mountain | F35: 1 | G35: 50 | H35: 80 | I35: 50 | J35: 60 | K35: 80 | L35: 80 | M35: 80 | N35: 80 | O35: 80 | P35: 50 | Q35: 60 | R35: 100 | S35: 60 | T35: 60 | U35: 80 | V35: 80 | W35: 80 | X35: 80 | Y35: 80 | Z35: 60 | AA35: =SUM(F35:Z35)-F35-G35 -> 1380 | AB35: 2
B36: COMINELLI LIVIA | C36: 1958 | D36: SC La Recastello | F36: 80 | G36: 60 | H36: 60 | I36: 60 | J36: 50 | K36: 60 | L36: 60 | M36: 60 | N36: 60 | O36: 60 | P36: 80 | Q36: 50 | S36: 80 | T36: 80 | U36: 60 | V36: 60 | W36: 60 | X36: 50 | Y36: 50 | Z36: 60 | AA36: =SUM(F36:Z36)-J36 -> 1190 | AB36: 3
B37: MERELLI MARIA LUISA | C37: 1958 | D37: SC La Recastello | F37: 60 | G37: 80 | H37: 100 | I37: 80 | J37: 80 | P37: 60 | Q37: 80 | R37: 60 | W37: 50 | X37: 60 | Y37: 60 | Z37: 30 | AA37: =SUM(F37:Z37) -> 800 | AB37: 4
B39: FEMMINILE DAME C2 | C39: Anno | D39: Società Old Stars | E39: Società Fisi | F39: Temù | G39: Borno | H39: Borno | I39: Gerola | J39: Gerola | K39: Aprica | L39: Aprica | M39: Comb.Aprica | N39: Lizzola | O39: Lizzola | P39: Aprica | Q39: Aprica | R39: Temu | S39: Chiesa | T39: Chiesa | U39: Chiesa | V39: Comb.Chiesa | W39: Tonale | X39: Tonale | Y39: Comb.Tonale | Z39: Bonus | AA39: Totale | AB39: Classifica
B40: dal 1963 al 1967
B41: MERELLI DELIA | C41: 1964 | D41: SC La Recastello | F41: 100 | G41: 100 | H41: 100 | I41: 60 | J41: 60 | P41: 80 | Q41: 80 | R41: 100 | Z41: 30 | AA41: =SUM(F41:Z41) -> 710 | AB41: 1
B42: FUMAGALLI P.ANGELA | C42: 1963 | D42: SC La Recastello | E42: SC OS Noi | P42: 100 | Q42: 100 | W42: 100 | X42: 100 | Y42: 100 | AA42: =SUM(F42:Z42) -> 500 | AB42: 2
B43: CASSINA ANTONIETTA | C43: 1966 | D43: SC Cernobbio | K43: 100 | L43: 100 | M43: 100 | AA43: =SUM(F43:Z43) -> 300 | AB43: 3
B44: COLOMBO MELISSA | C44: 1967 | D44: SC Ski Mountain | E44: SC Ski Mountain | I44: 100 | J44: 100 | AA44: =SUM(F44:Z44) -> 200 | AB44: 4
B45: FERRARIO RENATA | C45: 1966 | D45: SC Cernobbio | E45: SC Erba | I45: 80 | J45: 80 | AA45: =SUM(F45:Z45) -> 160 | AB45: 5
B47: FEMMINILE DAME C1 | C47: Anno | D47: Società Old Stars | E47: Società Fisi | F47: Temù | G47: Borno | H47: Borno | I47: Gerola | J47: Gerola | K47: Aprica | L47: Aprica | M47: Comb.Aprica | N47: Lizzola | O47: Lizzola | P47: Aprica | Q47: Aprica | R47: Temu | S47: Chiesa | T47: Chiesa | U47: Chiesa | V47: Comb.Chiesa | W47: Tonale | X47: Tonale | Y47: Comb.Tonale | Z47: Bonus | AA47: Totale | AB47: Classifica
B48: dal 1968 al 1973
B49: MOLLICA ALESSANDRA | C49: 1972 | D49: SC Ski Mountain | E49: SC Ski Mountain | K49: 100 | L49: 100 | M49: 100 | P49: 100 | Q49: 100 | R49: 100 | W49: 100 | X49: 100 | Y49: 100 | Z49: 10 | AA49: =SUM(F49:Z49) -> 910 | AB49: 1
B50: GENESINI GRAZIA | C50: 1970 | D50: SC Cernobbio | S50: 100 | T50: 100 | U50: 100 | V50: 100 | AA50: =SUM(F50:Z50) -> 400 | AB50: 2
B51: CASSINA ANNA | C51: 1969 | D51: SC Cernobbio | K51: 80 | L51: 80 | M51: 80 | AA51: =SUM(F51:Z51) -> 240 | AB51: 3
B53: SUPER 85 | C53: Anno | D53: Società Old Stars | E53: Società Fisi | F53: Temù | G53: Borno | H53: Borno | I53: Gerola | J53: Gerola | K53: Aprica | L53: Aprica | M53: Comb.Aprica | N53: Lizzola | O53: Lizzola | P53: Aprica | Q53: Aprica | R53: Temu | S53: Chiesa | T53: Chiesa | U53: Chiesa | V53: Comb.Chiesa | W53: Tonale | X53: Tonale | Y53: Comb.Tonale | Z53: Bonus | AA53: Totale | AB53: Classifica
B54: dal 1937 e precedenti
B55: CESATI SANDRO | C55: 1936 | D55: SC Ski Mountain | E55: SC Cristal Ski | F55: 100 | G55: 80 | I55: 100 | J55: 100 | K55: 80 | L55: 100 | M55: 100 | P55: 1 | Q55: 100 | T55: 100 | U55: 100 | V55: 100 | W55: 100 | X55: 100 | Y55: 100 | Z55: 30 | AA55: =SUM(F55:Z55) -> 1391 | AB55: 1
B56: MORO MARIO | C56: 1934 | D56: SC Ski Mountain | G56: 100 | K56: 100 | L56: 80 | M56: 80 | AA56: =SUM(F56:Z56) -> 360 | AB56: 2
B57: CANTU' ROBERTO | C57: 1930 | D57: SC Cernobbio | E57: SC Cernobbio | J57: 80 | K57: 50 | L57: 50 | M57: 50 | AA57: =SUM(F57:Z57) -> 230 | AB57: 3
B58: CASSINA EUGENIO | C58: 1937 | D58: SC Cernobbio | K58: 60 | L58: 60 | M58: 60 | AA58: =SUM(F58:Z58) -> 180 | AB58: 4
B60: SUPER 80 | C60: Anno | D60: Società Old Stars | E60: Società Fisi | F60: Temù | G60: Borno | H60: Borno | I60: Gerola | J60: Gerola | K60: Aprica | L60: Aprica | M60: Comb.Aprica | N60: Lizzola | O60: Lizzola | P60: Aprica | Q60: Aprica | R60: Temu | S60: Chiesa | T60: Chiesa | U60: Chiesa | V60: Comb.Chiesa | W60: Tonale | X60: Tonale | Y60: Comb.Tonale | Z60: Bonus | AA60: Totale | AB60: Classifica
B61: dal 1938 al 1942
B62: VALLE' G.ANTONIO | C62: 1939 | D62: SC Ski Mountain | E62: SC Ski Mountain | F62: 100 | G62: 80 | H62: 80 | I62: 60 | J62: 60 | K62: 60 | L62: 80 | M62: 80 | N62: 100 | O62: 100 | P62: 100 | Q62: 100 | R62: 100 | S62: 100 | T62: 100 | U62: 100 | V62: 100 | W62: 80 | X62: 80 | Y62: 80 | Z62: 60 | AA62: 1680 | AB62: 1
B63: BATTISTINI FELICE | C63: 1941 | D63: SC Ski Mountain | E63: SC Ski Mountain | G63: 100 | H63: 100 | I63: 100 | J63: 100 | K63: 80 | L63: 100 | M63: 100 | N63: 80 | O63: 80 | W63: 100 | X63: 100 | Y63: 100 | Z63: 30 | AA63: =SUM(F63:Z63) -> 1170 | AB63: 2
B64: SPLUGA ENZO | C64: 1942 | D64: SC La Recastello | E64: SC Orezzo | F64: 80 | G64: 60 | I64: 50 | J64: 50 | P64: 80 | Q64: 80 | S64: 80 | T64: 80 | U64: 80 | V64: 80 | W64: 60 | X64: 60 | Y64: 60 | Z64: 30 | AA64: 930 | AB64: 3
B65: GILARDONI FRANCESCO | C65: 1940 | D65: SC Cernobbio | E65: SC Cernobbio | F65: 60 | I65: 45 | J65: 45 | K65: 45 | L65: 45 | M65: 45 | N65: 60 | O65: 60 | P65: 50 | Q65: 50 | S65: 60 | T65: 60 | U65: 60 | V65: 60 | W65: 50 | X65: 50 | Y65: 50 | Z65: 30 | AA65: 925 | AB65: 4
B66: PIRAS ORIO | C66: 1941 | D66: SC Ski Mountain | E66: SC Ski Mountain | I66: 80 | J66: 80 | K66: 100 | L66: 60 | M66: 60 | R66: 80 | Z66: 10 | AA66: 470 | AB66: 5
B67: TRAINI SANDRO | C67: 1938 | D67: SC La Recastello | K67: 50 | L67: 50 | M67: 50 | P67: 60 | Q67: 60 | AA67: 270 | AB67: 6
B69: SUPER 75 | C69: Anno | D69: Società Old Stars | E69: Società Fisi | F69: Temù | G69: Borno | H69: Borno | I69: Gerola | J69: Gerola | K69: Aprica | L69: Aprica | M69: Comb.Aprica | N69: Lizzola | O69: Lizzola | P69: Aprica | Q69: Aprica | R69: Temu | S69: Chiesa | T69: Chiesa | U69: Chiesa | V69: Comb.Chiesa | W69: Tonale | X69: Tonale | Y69: Comb.Tonale | Z69: Bonus | AA69: Totale | AB69: Classifica
B70: dal 1943 al 1947
B71: CATTANEO ACHILLE | C71: 1943 | D71: SC Ski Mountain | E71: SC Pontedilegno | F71: 60 | G71: 40 | H71: 80 | I71: 100 | J71: 60 | K71: 50 | L71: 60 | M71: 60 | N71: 80 | O71: 100 | P71: 60 | Q71: 60 | R71: 100 | S71: 50 | T71: 80 | U71: 80 | V71: 80 | W71: 100 | X71: 100 | Y71: 100 | Z71: 60 | AA71: 1470 | AB71: 1
B72: FUMASONI ROBERTO | C72: 1946 | D72: SC Cernobbio | E72: SC Valli del Bitto | F72: 80 | G72: 100 | H72: 100 | I72: 80 | J72: 50 | K72: 60 | L72: 50 | M72: 50 | P72: 100 | Q72: 100 | R72: 60 | S72: 80 | T72: 60 | U72: 60 | V72: 60 | W72: 60 | X72: 50 | Y72: 50 | Z72: 60 | AA72: =SUM(F72:Z72) -> 1310 | AB72: 2
B73: BAVO GIUSEPPE | C73: 1946 | D73: SC Cernobbio | E73: SC Valli del Bitto | F73: 100 | I73: 60 | J73: 80 | K73: 100 | L73: 80 | M73: 100 | P73: 80 | Q73: 80 | S73: 100 | T73: 100 | U73: 100 | V73: 100 | Z73: 30 | AA73: 1110 | AB73: 3
B74: NOVELLI NANDO | C74: 1947 | D74: SC Ski Mountain | E74: SC Ski Mountain | F74: 40 | G74: 50 | H74: 45 | I74: 40 | J74: 40 | K74: 36 | L74: 36 | M74: 36 | N74: 60 | O74: 60 | P74: 36 | Q74: 36 | R74: 80 | S74: 45 | T74: 45 | U74: 40 | V74: 40 | W74: 80 | X74: 80 | Y74: 80 | Z74: 60 | AA74: 993 | AB74: 4
B75: GARBELLINI LINO | C75: 1947 | D75: SC Cernobbio | E75: SC Retike Ski | F75: 45 | G75: 80 | H75: 60 | I75: 45 | J75: 100 | K75: 45 | L75: 45 | M75: 45 | P75: 45 | Q75: 40 | R75: 50 | S75: 40 | T75: 50 | U75: 50 | V75: 50 | W75: 40 | X75: 45 | Y75: 45 | Z75: 60 | AA75: 980 | AB75: 5
B76: PELIZZARI GIANGIACOMO | C76: 1943 | D76: SC Cernobbio | E76: SC OS Noi | F76: 36 | G76: 60 | H76: 40 | I76: 36 | J76: 36 | K76: 29 | L76: 29 | M76: 29 | N76: 40 | O76: 50 | P76: 32 | Q76: 32 | R76: 40 | S76: 36 | T76: 36 | U76: 36 | V76: 36 | W76: 36 | X76: 36 | Y76: 36 | Z76: 60 | AA76: 743 | AB76: 6
B77: FERRI GIUSEPPE | C77: 1944 | D77: SC La Recastello | E77: SC Orezzo | F77: 50 | G77: 1 | H77: 50 | K77: 40 | L77: 40 | M77: 40 | N77: 100 | O77: 80 | P77: 40 | Q77: 45 | R77: 45 | T77: 40 | U77: 45 | V77: 45 | Z77: 30 | AA77: 691 | AB77: 7
B78: BAVO NATALINO | C78: 1943 | D78: SC Cernobbio | E78: SC Valli del Bitto | I78: 50 | J78: 45 | K78: 80 | L78: 100 | M78: 80 | P78: 50 | Q78: 50 | S78: 60 | Z78: 10 | AA78: 525 | AB78: 8
B79: BORIERO GIANNI | C79: 1946 | D79: SC Cernobbio | E79: SC Retike Ski | F79: 29 | I79: 29 | J79: 1 | K79: 24 | L79: 24 | M79: 24 | P79: 29 | Q79: 29 | R79: 36 | T79: 29 | U79: 29 | V79: 29 | W79: 26 | X79: 26 | Y79: 26 | Z79: 30 | AA79: 420 | AB79: 9
B80: RUFFINONI ALDO | C80: 1945 | D80: SC La Recastello | K80: 32 | L80: 32 | M80: 32 | N80: 50 | O80: 40 | W80: 50 | X80: 60 | Y80: 60 | Z80: 10 | AA80: 366 | AB80: 10
B81: MONTI PRIMO | C81: 1947 | D81: SC Cernobbio | E81: SC Cernobbio | F81: 24 | I81: 26 | J81: 29 | K81: 20 | L81: 20 | M81: 20 | N81: 29 | O81: 32 | P81: 1 | Q81: 1 | S81: 29 | T81: 26 | U81: 26 | V81: 26 | W81: 24 | X81: 1 | Y81: 1 | Z81: 30 | AA81: 365 | AB81: 11
B82: FERRARI DARIO | C82: 1947 | D82: SC Ski Mountain | E82: SC Ski Mountain | F82: 26 | G82: 32 | I82: 32 | J82: 32 | N82: 36 | O82: 36 | W82: 29 | X82: 29 | Y82: 29 | Z82: 10 | AA82: 291 | AB82: 12
B83: AGAZZI LUCIO | C83: 1947 | D83: SC Ski Mountain | E83: SC Ski Mountain | F83: 32 | N83: 45 | O83: 45 | W83: 45 | X83: 40 | Y83: 40 | Z83: 10 | AA83: 257 | AB83: 13
B84: BOMBARDIERI ENZO | C84: 1945 | D84: SC Cernobbio | E84: SC Snow Eagle | K84: 26 | L84: 26 | M84: 26 | S84: 32 | T84: 32 | U84: 32 | V84: 32 | Z84: 10 | AA84: 216 | AB84: 14
B85: MODESTI ATTILIO | C85: 1946 | D85: SC Ski Mountain | G85: 36 | H85: 1 | K85: 22 | L85: 22 | M85: 22 | AA85: 103 | AB85: 15
B86: CASSINA EZIO | C86: 1947 | D86: SC Cernobbio | I86: 1 | J86: 1 | W86: 32 | X86: 32 | Y86: 32 | AA86: 98 | AB86: 16
B87: BELOTTI NELLO | C87: 1946 | D87: SC La Recastello | G87: 45 | N87: 32 | AA87: 77 | AB87: 17
B88: MOONEY ENRICO | C88: 1946 | D88: SC Cernobbio | I88: 24 | J88: 26 | AA88: 50 | AB88: 18
B90: SUPER 70 | C90: Anno | D90: Società Old Stars | E90: Società Fisi | F90: Temù | G90: Borno | H90: Borno | I90: Gerola | J90: Gerola | K90: Aprica | L90: Aprica | M90: Comb.Aprica | N90: Lizzola | O90: Lizzola | P90: Aprica | Q90: Aprica | R90: Temu | S90: Chiesa | T90: Chiesa | U90: Chiesa | V90: Comb.Chiesa | W90: Tonale | X90: Tonale | Y90: Comb.Tonale | Z90: Bonus | AA90: Totale | AB90: Classifica
B91: dal 1948 al 1952
B92: CURTONI GIORGIO | C92: 1951 | D92: SC Ski Mountain | E92: SC Ski Mountain | F92: 1 | G92: 100 | H92: 100 | I92: 100 | J92: 100 | K92: 100 | L92: 100 | M92: 100 | P92: 100 | Q92: 100 | R92: 100 | S92: 100 | T92: 100 | U92: 32 | V92: 80 | W92: 100 | X92: 100 | Y92: 100 | Z92: 60 | AA92: =SUM(F92:Z92) -> 1673 | AB92: 1
B93: ZUGNONI LIVIO | C93: 1951 | D93: SC Cernobbio | E93: SC Valli del Bitto | F93: 100 | G93: 80 | H93: 80 | I93: 80 | J93: 60 | K93: 80 | L93: 80 | M93: 80 | N93: 100 | O93: 100 | P93: 80 | Q93: 80 | R93: 80 | S93: 80 | T93: 80 | U93: 100 | V93: 100 | W93: 80 | X93: 80 | Y93: 80 | Z93: 60 | AA93: 1600 | AB93: 2
B94: FERRI CARLO | C94: 1949 | D94: SC Cernobbio | E94: SC Stage Master | G94: 36 | H94: 60 | I94: 60 | J94: 80 | K94: 60 | L94: 60 | M94: 60 | N94: 45 | O94: 50 | P94: 60 | Q94: 60 | R94: 60 | S94: 60 | T94: 60 | U94: 80 | V94: 60 | W94: 50 | X94: 50 | Y94: 50 | Z94: 60 | AA94: 1125 | AB94: 3
B95: BERERA LINO | C95: 1949 | D95: SC La Recastello | F95: 80 | G95: 50 | H95: 50 | I95: 50 | J95: 40 | K95: 50 | L95: 45 | M95: 50 | N95: 60 | O95: 80 | P95: 50 | Q95: 50 | R95: 50 | S95: 50 | T95: 45 | U95: 45 | V95: 45 | W95: 45 | X95: 45 | Y95: 45 | Z95: 60 | AA95: 1000 | AB95: 4 | AC95: =SUM(F95:AA95) -> 2085
B96: BARONCHELLI G.MARIA | C96: 1952 | D96: SC La Recastello | E96: SC Orezzo | F96: 40 | G96: 60 | H96: 45 | K96: 45 | L96: 50 | M96: 45 | N96: 80 | O96: 45 | P96: 40 | Q96: 36 | T96: 50 | U96: 50 | V96: 50 | W96: 40 | X96: 24 | Y96: 32 | Z96: 30 | AA96: =SUM(F96:Z96) -> 762 | AB96: 5
B97: BUZZETTI ALFREDO | C97: 1949 | D97: SC Ski Mountain | E97: SC Ski Mountain | G97: 29 | H97: 32 | I97: 45 | J97: 50 | K97: 40 | L97: 32 | M97: 36 | P97: 36 | Q97: 32 | R97: 45 | S97: 45 | T97: 36 | U97: 36 | V97: 36 | W97: 20 | X97: 26 | Y97: 22 | Z97: 30 | AA97: 628 | AB97: 6
B98: IMBERTI G.BATTISTA | C98: 1949 | D98: SC La Recastello | E98: SC Orezzo | F98: 50 | G98: 32 | H98: 36 | I98: 40 | J98: 32 | K98: 36 | L98: 40 | M98: 40 | N98: 36 | O98: 40 | W98: 36 | X98: 40 | Y98: 40 | Z98: 30 | AA98: 528 | AB98: 7
B99: ROSSI MARCELLO | C99: 1951 | D99: SC Ski Mountain | E99: SC Cristal Ski | F99: 45 | G99: 40 | I99: 29 | J99: 29 | K99: 29 | L99: 29 | M99: 29 | P99: 26 | Q99: 29 | T99: 40 | U99: 60 | V99: 40 | W99: 22 | X99: 20 | Y99: 20 | Z99: 30 | AA99: 517 | AB99: 8
B100: CONFALONIERI NORBERTO | C100: 1952 | D100: SC Ski Mountain | E100: SC La Neve | F100: 36 | G100: 26 | I100: 32 | J100: 36 | K100: 26 | L100: 24 | M100: 24 | N100: 40 | O100: 36 | P100: 29 | Q100: 26 | T100: 32 | U100: 40 | V100: 32 | Z100: 30 | AA100: 469 | AB100: 9
B101: AMBROSIONI G.BATTISTA | C101: 1952 | D101: SC Ski Mountain | E101: SC Ski Mountain | G101: 24 | H101: 29 | I101: 26 | J101: 24 | K101: 24 | L101: 26 | M101: 26 | N101: 32 | O101: 32 | P101: 24 | Q101: 24 | W101: 24 | X101: 29 | Y101: 24 | Z101: 30 | AA101: 398 | AB101: 10
B102: MODANESI ROMEO | C102: 1951 | D102: SC Ski Mountain | E102: SC Ski Mountain | F102: 60 | N102: 50 | O102: 60 | P102: 45 | Q102: 45 | R102: 40 | W102: 26 | X102: 32 | Y102: 26 | Z102: 10 | AA102: 394 | AB102: 11
B103: CEMMI FEDERICO | C103: 1951 | D103: SC Ski Mountain | E103: SC Corte Franca | G103: 45 | H103: 40 | K103: 32 | L103: 36 | M103: 32 | P103: 32 | Q103: 40 | W103: 29 | X103: 22 | Y103: 29 | Z103: 10 | AA103: 347 | AB103: 12
B104: BIELLA GIUSEPPE | C104: 1950 | D104: SC Ski Mountain | E104: SC Cristal Ski | F104: 29 | I104: 1 | J104: 40 | K104: 22 | L104: 22 | M104: 22 | P104: 22 | Q104: 22 | T104: 29 | U104: 29 | V104: 29 | W104: 16 | X104: 16 | Y104: 16 | Z104: 30 | AA104: 345 | AB104: 13
B105: LOCATELLI VALERIO | C105: 1952 | D105: SC Cernobbio | E105: SC Marzotto | W105: 60 | X105: 60 | Y105: 60 | AA105: 180 | AB105: 14
B106: MAGNI GIGI | C106: 1950 | D106: SC La Recastello | E106: SC Orezzo | W106: 32 | X106: 36 | Y106: 36 | AA106: 104 | AB106: 15
B107: TESTA CLAUDIO | C107: 1949 | D107: SC La Recastello | F107: 32 | N107: 29 | O107: 29 | AA107: 90 | AB107: 16
B108: MAXENTI RENZO | C108: 1948 | D108: SC Cernobbio | E108: SC Valli del Bitto | I108: 36 | J108: 45 | AA108: 81 | AB108: 17
B109: FRACCHIA MAURIZIO | C109: 1948 | D109: SC Cernobbio | T109: 26 | U109: 26 | V109: 26 | AA109: 78 | AB109: 18
B110: MANZOTTI MARCO | C110: 1952 | D110: SC Ski Mountain | W110: 18 | X110: 18 | Y110: 18 | AA110: 54 | AB110: 19
B111: RIVOLTA FERNANDO | C111: 1950 | D111: SC GEM Monza | E111: SC GEM Monza | I111: 22 | J111: 26 | AA111: 48 | AB111: 20
B112: CALLONI MARCO | C112: 1949 | D112: SC GEM Monza | E112: SC GEM Monza | I112: 24 | J112: 22 | AA112: 46 | AB112: 21
B114: SUPER 65 | C114: Anno | D114: Società Old Stars | E114: Società Fisi | F114: Temù | G114: Borno | H114: Borno | I114: Gerola | J114: Gerola | K114: Aprica | L114: Aprica | M114: Comb.Aprica | N114: Lizzola | O114: Lizzola | P114: Aprica | Q114: Aprica | R114: Temu | S114: Chiesa | T114: Chiesa | U114: Chiesa | V114: Comb.Chiesa | W114: Tonale | X114: Tonale | Y114: Comb.Tonale | Z114: Bonus | AA114: Totale | AB114: Classifica
B115: dal 1953 al 1957
B116: CARRARA ADRIANO | C116: 1957 | D116: SC La Recastello | E116: SC Orezzo | F116: 80 | G116: 100 | H116: 100 | I116: 80 | J116: 80 | K116: 80 | L116: 80 | M116: 80 | N116: 100 | O116: 80 | P116: 80 | Q116: 60 | R116: 50 | S116: 80 | T116: 80 | U116: 100 | V116: 80 | W116: 80 | X116: 80 | Y116: 80 | Z116: 60 | AA116: =SUM(F116:Z116)-Q116-R116 -> 1580 | AB116: 1
B117: SABBADINI MARIO | C117: 1955 | D117: SC La Recastello | E117: SC Orezzo | F117: 60 | I117: 100 | J117: 100 | K117: 60 | L117: 60 | M117: 60 | N117: 60 | O117: 60 | P117: 60 | Q117: 80 | R117: 80 | S117: 100 | T117: 100 | U117: 80 | V117: 100 | W117: 100 | X117: 100 | Y117: 100 | Z117: 60 | AA117: =SUM(F117:Z117) -> 1520 | AB117: 2
B118: GANDOSSI DANILO | C118: 1956 | D118: SC La Recastello | E118: SC Orezzo | F118: 50 | G118: 80 | H118: 80 | I118: 45 | J118: 60 | K118: 50 | L118: 50 | M118: 50 | N118: 50 | O118: 50 | P118: 50 | Q118: 50 | R118: 60 | S118: 60 | T118: 60 | U118: 60 | V118: 60 | W118: 60 | X118: 60 | Y118: 60 | Z118: 60 | AA118: =SUM(F118:Z118)-F118-I118 -> 1110 | AB118: 3
B119: BERGAMELLI G.PIETRO | C119: 1954 | D119: SC Ski Mountain | E119: SC Enjoy SkiTeam | F119: 100 | K119: 100 | L119: 100 | M119: 100 | N119: 80 | O119: 100 | P119: 100 | Q119: 100 | R119: 100 | Z119: 30 | AA119: =SUM(F119:Z119) -> 910 | AB119: 4
B120: BALZARETTI ANGELO | C120: 1955 | D120: SC Cernobbio | E120: SC Cernobbio | F120: 40 | G120: 60 | H120: 60 | I120: 60 | J120: 45 | K120: 45 | L120: 45 | M120: 45 | N120: 45 | O120: 45 | R120: 40 | S120: 45 | T120: 50 | U120: 50 | V120: 50 | W120: 36 | X120: 32 | Y120: 36 | Z120: 60 | AA120: =SUM(F120:Z120) -> 889 | AB120: 5
B121: LOMBARDI CARMINE | C121: 1955 | D121: SC La Recastello | E121: SC Orezzo | F121: 29 | G121: 36 | H121: 45 | I121: 24 | J121: 26 | K121: 32 | L121: 29 | M121: 29 | N121: 40 | O121: 36 | P121: 36 | Q121: 36 | R121: 36 | S121: 32 | T121: 32 | U121: 40 | V121: 36 | W121: 32 | X121: 29 | Y121: 32 | Z121: 60 | AA121: =SUM(F121:Z121)-I121-J121 -> 677 | AB121: 6
B122: MAGNI MAURIZIO | C122: 1953 | D122: SC Ski Mountain | E122: SC GB Ski Team | F122: 36 | G122: 50 | H122: 40 | I122: 40 | J122: 40 | K122: 36 | L122: 36 | M122: 36 | P122: 1 | S122: 40 | T122: 36 | U122: 29 | V122: 32 | W122: 50 | X122: 45 | Y122: 45 | Z122: 30 | AA122: =SUM(F122:Z122) -> 622 | AB122: 7
B123: SALVADORI FEDERINO | C123: 1955 | D123: SC Cernobbio | E123: SC Stage Master | F123: 32 | G123: 40 | H123: 50 | I123: 40 | J123: 24 | K123: 29 | L123: 32 | M123: 32 | S123: 50 | T123: 40 | U123: 36 | V123: 40 | W123: 40 | X123: 40 | Y123: 40 | Z123: 30 | AA123: 595 | AB123: 8
B124: ALBRICCI BORTOLO | C124: 1956 | D124: SC La Recastello | E124: SC Gromo | F124: 20 | G124: 1 | H124: 36 | I124: 29 | J124: 32 | K124: 26 | L124: 24 | M124: 26 | N124: 36 | O124: 32 | P124: 26 | Q124: 24 | T124: 45 | U124: 45 | V124: 45 | W124: 20 | X124: 36 | Y124: 24 | Z124: 60 | AA124: 587 | AB124: 9
B125: GOTTI GIORDANO | C125: 1953 | D125: SC Cernobbio | E125: SC Retike Ski | F125: 24 | G125: 32 | H125: 29 | I125: 26 | J125: 29 | K125: 20 | L125: 20 | M125: 20 | P125: 24 | Q125: 26 | R125: 29 | S125: 29 | T125: 26 | U125: 26 | V125: 26 | W125: 22 | X125: 22 | Y125: 20 | Z125: 60 | AA125: 510 | AB125: 10
B126: MAXENTI VINCENZO | C126: 1957 | D126: SC Ski Mountain | E126: SC Ski Mountain | F126: 22 | G126: 29 | H126: 32 | I126: 32 | J126: 36 | K126: 18 | L126: 18 | M126: 18 | P126: 20 | Q126: 20 | R126: 32 | S126: 24 | T126: 24 | U126: 20 | V126: 22 | W126: 26 | X126: 24 | Y126: 26 | Z126: 60 | AA126: 503 | AB126: 11
B127: BARANA ENRICO | C127: 1953 | D127: SC Ski Mountain | E127: SC Ski Mountain | F127: 26 | G127: 45 | H127: 1 | K127: 24 | L127: 22 | M127: 22 | P127: 22 | Q127: 22 | S127: 26 | T127: 20 | U127: 22 | V127: 20 | W127: 24 | X127: 20 | Y127: 22 | Z127: 30 | AA127: 368 | AB127: 12
B128: ZERBONI FAUSTO | C128: 1953 | D128: SC Cernobbio | E128: SC Retike Ski | K128: 22 | L128: 26 | M128: 24 | P128: 29 | R128: 26 | S128: 36 | T128: 29 | U128: 32 | V128: 29 | W128: 29 | X128: 26 | Y128: 29 | Z128: 30 | AA128: 367 | AB128: 13
B129: GAMBA BRUNO | C129: 1953 | D129: SC La Recastello | E129: SC Os Noi | N129: 32 | O129: 40 | P129: 45 | Q129: 45 | R129: 45 | W129: 45 | X129: 50 | Y129: 50 | Z129: 10 | AA129: 362 | AB129: 14
B130: MELCHIORI LUCIANO | C130: 1953 | D130: SC Ski Mountain | E130: SC Cassano M. | K130: 40 | L130: 40 | M130: 40 | P130: 40 | Q130: 40 | AA130: 200 | AB130: 15
B131: BOILLAT ERNESTO | C131: 1957 | D131: SC Cernobbio | P131: 1 | Q131: 1 | S131: 22 | T131: 18 | U131: 18 | V131: 18 | W131: 18 | X131: 18 | Y131: 18 | Z131: 10 | AA131: 142 | AB131: 16
B132: ZUGNONI MARCO | C132: 1953 | D132: SC Cernobbio | I132: 50 | J132: 50 | Q132: 29 | AA132: 129 | AB132: 17
B133: BORRA CLEMENTE | C133: 1956 | D133: SC Cernobbio | I133: 22 | J133: 22 | T133: 22 | U133: 24 | V133: 24 | AA133: 114 | AB133: 18
B134: MUNARETTO MAURIZIO | C134: 1954 | D134: SC Ski Mountain | E134: SC Cuvignone | P134: 32 | Q134: 32 | AA134: 64 | AB134: 19
B135: CORBELLA PIERO | C135: 1954 | D135: SC La Recastello | E135: SC Unicredit MI | F135: 45 | AA135: 45 | AB135: 20
B137: Super 60 | C137: Anno | D137: Società Old Stars | E137: Società Fisi | F137: Temù | G137: Borno | H137: Borno | I137: Gerola | J137: Gerola | K137: Aprica | L137: Aprica | M137: Comb.Aprica | N137: Lizzola | O137: Lizzola | P137: Aprica | Q137: Aprica | R137: Temu | S137: Chiesa | T137: Chiesa | U137: Chiesa | V137: Comb.Chiesa | W137: Tonale | X137: Tonale | Y137: Comb.Tonale | Z137: Bonus | AA137: Totale | AB137: Classifica
B138: dal 1958 al 1962
B139: POMONI FAUSTO | C139: 1961 | D139: SC Ski Mountain | E139: SC Valli del Bitto | F139: 100 | G139: 100 | H139: 100 | I139: 80 | J139: 80 | K139: 60 | L139: 80 | M139: 80 | N139: 50 | O139: 50 | P139: 80 | Q139: 80 | R139: 80 | S139: 100 | T139: 50 | U139: 50 | V139: 50 | W139: 80 | X139: 80 | Y139: 80 | Z139: 60 | AA139: 1470 | AB139: 1
B140: MIGLIORATI SERGIO | C140: 1959 | D140: SC La Recastello | E140: SC Presolana M.Pora | K140: 100 | L140: 100 | M140: 100 | N140: 80 | O140: 100 | R140: 100 | S140: 80 | T140: 40 | U140: 60 | V140: 45 | W140: 60 | X140: 60 | Y140: 60 | Z140: 30 | AA140: =SUM(F140:Z140) -> 1015 | AB140: 2
B141: TOMBINI P.ANGELO | C141: 1960 | D141: SC Ski Mountain | E141: SC Ski Mountain | F141: 80 | G141: 60 | H141: 50 | I141: 40 | J141: 45 | K141: 45 | L141: 60 | M141: 60 | N141: 60 | O141: 45 | P141: 45 | Q141: 50 | R141: 60 | S141: 60 | T141: 32 | U141: 32 | V141: 32 | W141: 50 | X141: 50 | Y141: 50 | Z141: 60 | AA141: 1004 | AB141: 3
B142: VAINI GUIDO | C142: 1958 | D142: SC Ski Mountain | E142: SC Ski Mountain | F142: 60 | G142: 40 | H142: 36 | I142: 29 | J142: 40 | K142: 29 | L142: 32 | M142: 32 | N142: 36 | O142: 36 | P142: 36 | Q142: 36 | R142: 32 | S142: 40 | T142: 22 | U142: 20 | V142: 22 | W142: 29 | X142: 40 | Y142: 32 | Z142: 60 | AA142: =SUM(F142:Z142)-T142-U142 -> 697 | AB142: 4
B143: FAZZINI AMOS | C143: 1960 | D143: SC Ski Mountain | E143: SC Alta Valsassina | I143: 100 | J143: 100 | P143: 100 | Q143: 100 | T143: 100 | U143: 80 | V143: 80 | Z143: 10 | AA143: =SUM(F143:Z143) -> 670 | AB143: 5
B144: BORDAZZI SERGIO | C144: 1958 | D144: SC La Recastello | G144: 45 | H144: 45 | I144: 36 | J144: 36 | K144: 32 | L144: 29 | M144: 36 | N144: 32 | O144: 32 | P144: 32 | Q144: 29 | R144: 45 | T144: 24 | U144: 22 | V144: 24 | W144: 26 | X144: 29 | Y144: 29 | Z144: 60 | AA144: 643 | AB144: 6
B145: ORIO SERGIO | C145: 1958 | D145: SC Ski Mountain | E145: SC STT Competition | I145: 60 | J145: 60 | K145: 80 | L145: 1 | M145: 1 | P145: 60 | Q145: 60 | W145: 100 | X145: 100 | Y145: 100 | Z145: 10 | AA145: 632 | AB145: 7
B146: ZUCCHELLI MARCO | C146: 1959 | D146: SC La Recastello | E146: SC Orezzo | K146: 40 | L146: 50 | M146: 45 | N146: 40 | O146: 80 | P146: 50 | Q146: 45 | T146: 36 | U146: 29 | V146: 29 | W146: 36 | X146: 32 | Y146: 36 | Z146: 30 | AA146: 578 | AB146: 8
B147: GALIZZI OSCAR | C147: 1960 | D147: SC Ski Mountain | G147: 80 | H147: 80 | K147: 36 | L147: 40 | M147: 40 | N147: 100 | O147: 60 | W147: 40 | X147: 45 | Y147: 45 | Z147: 10 | AA147: 576 | AB147: 9
B148: POROTTO MARCO | C148: 1962 | D148: SC Ski Mountain | G148: 50 | H148: 60 | I148: 50 | J148: 50 | K148: 1 | L148: 36 | M148: 1 | P148: 40 | Q148: 40 | R148: 50 | S148: 50 | T148: 26 | U148: 24 | V148: 26 | Z148: 30 | AA148: 534 | AB148: 10
B149: CIAPONI FABIO | C149: 1960 | D149: SC Cernobbio | E149: SC Sport Due | G149: 36 | H149: 32 | I149: 32 | J149: 29 | K149: 26 | L149: 1 | M149: 1 | N149: 29 | O149: 29 | P149: 29 | Q149: 32 | T149: 20 | U149: 18 | V149: 20 | W149: 45 | X149: 1 | Y149: 1 | Z149: 30 | AA149: 411 | AB149: 11
B150: PEZZOLI GIACOMO | C150: 1961 | D150: SC La Recastello | F150: 50 | G150: 32 | H150: 1 | I150: 26 | J150: 1 | P150: 26 | Q150: 26 | R150: 40 | S150: 36 | T150: 18 | U150: 16 | V150: 18 | W150: 24 | X150: 26 | Y150: 26 | Z150: 30 | AA150: 396 | AB150: 12
B151: ROSSI MARCO | C151: 1962 | D151: SC Ski Mountain | E151: SC La Neve | G151: 26 | H151: 29 | I151: 22 | J151: 26 | K151: 24 | L151: 26 | M151: 29 | P151: 24 | Q151: 24 | T151: 16 | U151: 15 | V151: 16 | W151: 20 | X151: 22 | Y151: 22 | Z151: 30 | AA151: 371 | AB151: 13
B152: ASTI MASSIMO | C152: 1962 | D152: SC Ski Mountain | E152: SC La Neve | T152: 80 | U152: 100 | V152: 100 | AA152: 280 | AB152: 14
B153: ROSSI PAOLO | C153: 1962 | D153: SC La Recastello | E153: SC Rovetta | K153: 50 | L153: 45 | M153: 50 | W153: 32 | X153: 36 | Y153: 40 | AA153: 253 | AB153: 15
B154: COLOMBO STEFANO | C154: 1961 | D154: SC Ski Mountain | E154: SC Ski Mountain | K154: 22 | M154: 1 | R154: 36 | T154: 15 | U154: 14 | V154: 15 | W154: 22 | X154: 24 | Y154: 24 | Z154: 10 | AA154: 183 | AB154: 16
B155: DONATI ADRIANO | C155: 1958 | D155: SC Ski Mountain | E155: SC Snow Eagle | T155: 60 | U155: 45 | V155: 60 | AA155: 165 | AB155: 17
B156: GALBUSERA GUIDO | C156: 1958 | D156: SC Cernobbio | E156: SC Snow Eagle | S156: 45 | T156: 29 | U156: 36 | V156: 36 | AA156: 146 | AB156: 18
B157: GUERCI MARCO | C157: 1959 | D157: SC Ski Mountain | E157: SC Radici | T157: 45 | U157: 40 | V157: 40 | AA157: 125 | AB157: 19
B158: CARMINI STEFANO | C158: 1961 | D158: SC Ski Mountain | E158: SC Temi Milano | F158: 45 | G158: 29 | H158: 40 | AA158: 114 | AB158: 20
B159: BARTESAGHI CARLO | C159: 1959 | D159: SC Cernobbio | E159: SC Erba | I159: 45 | J159: 32 | T159: 1 | U159: 26 | V159: 1 | AA159: 105 | AB159: 21
B160: BANFI LUCA | C160: 1959 | D160: SC Ski Mountain | E160: SC Ski Mountain | N160: 45 | O160: 40 | AA160: 85 | AB160: 22
B161: LABAGNI LUCA | C161: 1960 | D161: SC La Recastello | N161: 26 | O161: 26 | AA161: 52 | AB161: 23
B162: MARTINELLI ANTONIO | C162: 1959 | D162: SC Cernobbio | E162: SC Valli del Bitto | I162: 24 | AA162: 24 | AB162: 24
B164: Super 55 | C164: Anno | D164: Società Old Stars | E164: Società Fisi | F164: Temù | G164: Borno | H164: Borno | I164: Gerola | J164: Gerola | K164: Aprica | L164: Aprica | M164: Comb.Aprica | N164: Lizzola | O164: Lizzola | P164: Aprica | Q164: Aprica | R164: Temu | S164: Chiesa | T164: Chiesa | U164: Chiesa | V164: Comb.Chiesa | W164: Tonale | X164: Tonale | Y164: Comb.Tonale | Z164: Bonus | AA164: Totale | AB164: Classifica
B165: dal 1963 al 1967
B166: PLONA MARCO | C166: 1966 | D166: SC Ski Mountain | E166: SC Aprica | F166: 80 | I166: 80 | K166: 100 | L166: 100 | M166: 100 | P166: 100 | Q166: 100 | R166: 100 | S166: 100 | T166: 100 | U166: 80 | V166: 80 | W166: 100 | X166: 80 | Y166: 100 | Z166: 30 | AA166: =SUM(F166:Z166) -> 1430 | AB166: 1
B167: MULAZZI GIANNI | C167: 1966 | D167: SC Ski Mountain | E167: SC Enjoy SkiTeam | F167: 100 | G167: 100 | H167: 100 | I167: 100 | J167: 100 | N167: 100 | O167: 1 | P167: 80 | Q167: 80 | T167: 60 | U167: 60 | V167: 60 | Z167: 30 | AA167: 971 | AB167: 2
B168: CANCLINI DAVIDE | C168: 1963 | D168: SC Cernobbio | E168: SC Retike Ski | G168: 45 | H168: 50 | I168: 40 | J168: 45 | K168: 32 | L168: 36 | M168: 40 | N168: 45 | O168: 45 | P168: 45 | Q168: 45 | R168: 80 | S168: 60 | T168: 36 | U168: 36 | V168: 36 | W168: 50 | X168: 50 | Y168: 50 | Z168: 60 | AA168: 926 | AB168: 3
B169: COLOMBO STEFANO | C169: 1966 | D169: SC Ski Mountain | E169: SC Cristal Ski | G169: 60 | H169: 80 | I169: 50 | J169: 80 | K169: 60 | L169: 60 | M169: 80 | N169: 60 | O169: 100 | P169: 60 | Q169: 50 | T169: 40 | U169: 40 | V169: 40 | Z169: 30 | AA169: 890 | AB169: 4
B170: MAGGIONI ACHILLE | C170: 1965 | D170: SC Ski Mountain | E170: SC Ski Race Camp | K170: 45 | L170: 50 | M170: 50 | P170: 50 | Q170: 60 | T170: 50 | U170: 45 | V170: 45 | Z170: 10 | AA170: 405 | AB170: 5
B171: ZUGNONI ENEA | C171: 1965 | D171: SC Cernobbio | F171: 50 | I171: 45 | J171: 50 | K171: 40 | L171: 40 | M171: 45 | N171: 50 | O171: 50 | Z171: 10 | AA171: 380 | AB171: 6
B172: SALVADORI MARCO | C172: 1963 | D172: SC Cernobbio | E172: SC Stage Master | F172: 60 | G172: 50 | H172: 60 | I172: 60 | J172: 60 | Z172: 10 | AA172: 300 | AB172: 7
B173: MENOTTI ALBERTO | C173: 1967 | D173: SC Ski Mountain | E173: SC Albavilla | T173: 80 | U173: 100 | V173: 100 | AA173: 280 | AB173: 8
B174: GRANATA ALESSANDRO | C174: 1966 | D174: SC Ski Mountain | E174: SC Piacenza Ski T. | W174: 80 | X174: 100 | Y174: 80 | AA174: 260 | AB174: 9
B175: MAGONI OSCAR | C175: 1967 | D175: SC Ski Mountain | N175: 80 | O175: 80 | S175: 80 | AA175: 240 | AB175: 10
B176: SALVETTI ROMEO | C176: 1963 | D176: SC Ski Mountain | E176: SC Ski Race Camp | K176: 80 | L176: 1 | M176: 1 | T176: 45 | U176: 50 | V176: 50 | AA176: 227 | AB176: 11
B177: ALBERTINI FRANCO | C177: 1965 | D177: SC Ski Mountain | E177: SC Zanetti Goggi | K177: 50 | L177: 80 | M177: 60 | AA177: 190 | AB177: 12
B178: REMONDINI ELIO | C178: 1964 | D178: SC Ski Mountain | E178: SC Unicredit | W178: 60 | X178: 60 | Y178: 60 | AA178: 180 | AB178: 13
B179: CANTONI DAVIDE | C179: 1967 | D179: SC Cernobbio | I179: 32 | J179: 36 | T179: 32 | U179: 32 | V179: 32 | AA179: 164 | AB179: 14
B180: ZANETTI MATTEO | C180: 1964 | D180: SC Ski Mountain | E180: SC Zanetti Goggi | G180: 80 | H180: 1 | N180: 1 | O180: 60 | AA180: 142 | AB180: 15
B181: TAVECCHIO PIETRO | C181: 1965 | D181: SC Cernobbio | E181: SC Erba | I181: 36 | J181: 40 | AA181: 76 | AB181: 16
B182: MERELLI CLAUDIO | C182: 1964 | D182: GSA Marinelli | K182: 1 | L182: 45 | M182: 1 | AA182: 47 | AB182: 17
B183: MARIANI ANDREA | C183: 1966 | D183: SC Ski Mountain | E183: SC Cassano M. | K183: 36 | L183: 1 | M183: 1 | AA183: 38 | AB183: 18
B185: Super 50 | C185: Anno | D185: Società Old Stars | E185: Società Fisi | F185: Temù | G185: Borno | H185: Borno | I185: Gerola | J185: Gerola | K185: Aprica | L185: Aprica | M185: Comb.Aprica | N185: Lizzola | O185: Lizzola | P185: Aprica | Q185: Aprica | R185: Temu | S185: Chiesa | T185: Chiesa | U185: Chiesa | V185: Comb.Chiesa | W185: Tonale | X185: Tonale | Y185: Comb.Tonale | Z185: Bonus | AA185: Totale | AB185: Classifica
B186: dal 1968 al 1973
B187: CIAPONI WALTER | C187: 1969 | D187: SC Cernobbio | E187: SC Ski Mountain | G187: 100 | H187: 100 | I187: 100 | J187: 80 | K187: 100 | L187: 45 | M187: 45 | N187: 100 | O187: 100 | P187: 100 | Q187: 100 | T187: 100 | U187: 100 | V187: 100 | W187: 100 | X187: 80 | Y187: 100 | Z187: 60 | AA187: =SUM(F187:Z187) -> 1610 | AB187: 1
B188: PERLINI CRISTIAN | C188: 1971 | D188: SC Cernobbio | I188: 60 | J188: 60 | K188: 60 | L188: 80 | M188: 80 | N188: 60 | O188: 60 | P188: 80 | Q188: 80 | T188: 80 | U188: 80 | V188: 80 | W188: 80 | X188: 60 | Y188: 80 | Z188: 30 | AA188: 1110 | AB188: 2
B189: GERLETTI ALBERTO | C189: 1970 | D189: SC Cernobbio | I189: 36 | J189: 36 | K189: 45 | L189: 50 | M189: 50 | T189: 60 | U189: 60 | V189: 60 | W189: 60 | X189: 50 | Y189: 60 | Z189: 10 | AA189: 577 | AB189: 3
B190: ZUGNONI MASSIMO | C190: 1968 | D190: SC Cernobbio | I190: 80 | J190: 100 | K190: 80 | L190: 100 | M190: 100 | AA190: 460 | AB190: 4
B191: CAMPOLO TONY | C191: 1968 | D191: SC Ski Mountain | E191: 40 | F191: 80 | G191: 80 | H191: 80 | I191: 45 | J191: 50 | Z191: 10 | AA191: 345 | AB191: 5
B192: MALINVERNO NICOLA | C192: 1968 | D192: SC Cernobbio | I192: 40 | J192: 40 | T192: 50 | U192: 50 | V192: 50 | AA192: 230 | AB192: 6
B193: GIUDES CRISTIAN | C193: 1969 | D193: SC Ski Mountain | K193: 50 | L193: 60 | M193: 60 | AA193: 170 | AB193: 7
B194: MONICO FRANCESCO | C194: 1968 | D194: SC Ski Mountain | E194: SC Enjoy SkiTeam | N194: 80 | O194: 80 | AA194: 160 | AB194: 8
B195: DE TOMA MARCO | C195: 1969 | D195: SC Ski Mountain | E195: SC Enjoy SkiTeam | G195: 1 | W195: 1 | X195: 100 | Y195: 1 | AA195: 103 | AB195: 9
B196: CANTONI DAVIDE | C196: 1967 | D196: SC Cernobbio | E196: SC Cernobbio | F196: 100 | AA196: 100 | AB196: 10
B197: LIRONI ANTONIO | C197: 1972 | D197: SC Cernobbio | I197: 50 | J197: 45 | AA197: 95 | AB197: 11
B199: Junior | C199: Anno | D199: Società Old Stars | E199: Società Fisi | F199: Temù | G199: Borno | H199: Borno | I199: Gerola | J199: Gerola | K199: Aprica | L199: Aprica | M199: Comb.Aprica | N199: Lizzola | O199: Lizzola | P199: Aprica | Q199: Aprica | R199: Temu | S199: Chiesa | T199: Chiesa | U199: Chiesa | V199: Comb.Chiesa | W199: Tonale | X199: Tonale | Y199: Comb.Tonale | Z199: Bonus | AA199: Totale | AB199: Classifica
B200: dal 1974 al 2003
B201: CIAPONI SIMONE | C201: 1994 | D201: SC Cernobbio | E201: SC Sport Due | I201: 100 | J201: 100 | K201: 100 | L201: 100 | M201: 100 | P201: 100 | Q201: 100 | T201: 80 | U201: 80 | V201: 80 | Z201: 10 | AA201: =SUM(F201:Z201) -> 950 | AB201: 1
B202: STREPPONI LUIGI | C202: 1977 | D202: SC Ski Mountain | K202: 80 | L202: 80 | M202: 80 | P202: 80 | Q202: 80 | AA202: 400 | AB202: 2
B203: ZECCA GIUSEPPE | C203: 1983 | D203: SC Cernobbio | E203: SC Valli del Bitto | I203: 80 | J203: 80 | T203: 60 | U203: 60 | V203: 60 | AA203: 340 | AB203: 3
B204: MAXENTI FABIO | C204: 1982 | D204: SC Cernobbio | E204: SC Valli del Bitto | T204: 100 | U204: 100 | V204: 100 | AA204: 300 | AB204: 4
B205: MACALLI STEFANO | C205: 1978 | D205: SC La Recastello | R205: 100 | S205: 100 | AA205: 200 | AB205: 5
B206: DANIELLI ALESSANDRO | C206: 1977 | D206: SC Cernobbio | I206: 60 | J206: 60 | AA206: 120 | AB206: 6
